[Event "Championnat du monde jeunes U10"]
[Date "2024.11.24"]
[White "Liu, Liam"]
[Black "Ejsymont, Eryk"]
[WhiteElo "1783"]
[BlackElo "1910"]
[Round "9.28"]
[Result "1/2-1/2"]
[TimeControl "5400+30"]

1. e4 {[%clk 1:30:56]} 1... c5 {[%clk 1:30:56]} 2. c3 {[%clk 1:31:15]} 2... Nf6
{[%clk 1:31:18]} 3. e5 {[%clk 1:31:39]} 3... Nd5 4. d4 {[%clk 1:31:59]} 4...
cxd4 {[%clk 1:32:15]} 5. cxd4 {[%clk 1:31:59]} 5... d6 {[%clk 1:32:42]} 6. Bc4
{[%clk 1:31:51]} 6... Nb6 {[%clk 1:33:06]} 7. Bb3 {[%clk 1:32:16]} 7... dxe5
{[%clk 1:33:22]} 8. Qh5 {[%clk 1:32:31]} 8... e6 {[%clk 1:33:46]} 9. dxe5 {[%clk
1:32:55]} 9... Nc6 {[%clk 1:33:58]} 10. Nc3 {[%clk 1:32:35]} 10... Qd3 {[%clk
1:33:55]} 11. Bf4 {[%clk 1:32:03]} 11... Na5 {[%clk 1:33:24]} 12. Rd1 {[%clk
1:29:27]} 12... Qg6 {[%clk 1:32:56]} 13. Qxg6 {[%clk 1:24:45]} 13... hxg6 {[%clk
1:33:25]} 14. Nf3 {[%clk 1:22:06]} 14... Bb4 {[%clk 1:29:52]} 15. O-O {[%clk
1:21:32]} 15... Bd7 {[%clk 1:23:23]} 16. Bd2 {[%clk 1:10:42]} 16... Nac4 {[%clk
1:05:42]} 17. Ne4 {[%clk 1:06:01]} 17... Nxd2 {[%clk 0:59:15]} 18. Nfxd2 {[%clk
1:05:26]} 18... Bb5 {[%clk 0:52:47]} 19. Rfe1 {[%clk 1:03:41]} 19... Rd8 {[%clk
0:48:56]} 20. a3 {[%clk 0:57:32]} 20... Bxd2 {[%clk 0:46:42]} 21. Rxd2 {[%clk
0:57:03]} 21... Rxd2 {[%clk 0:46:56]} 22. Nxd2 {[%clk 0:57:26]} 22... Bc6 {[%clk
0:43:37]} 23. Ne4 {[%clk 0:48:24]} 23... Bxe4 {[%clk 0:44:05]} 24. Rxe4 {[%clk
0:48:45]} 24... Ke7 {[%clk 0:44:29]} 25. Rd4 {[%clk 0:48:58]} 25... Rc8 {[%clk
0:44:35]} 26. g3 {[%clk 0:46:22]} 26... Rc5 {[%clk 0:42:22]} 27. f4 {[%clk
0:45:26]} 27... Rb5 {[%clk 0:41:21]} 28. Rb4 {[%clk 0:42:03]} 28... Rc5 {[%clk
0:29:37]} 29. Rd4 {[%clk 0:42:23]} 29... g5 {[%clk 0:26:28]} 30. Kf2 {[%clk
0:40:07]} 30... gxf4 {[%clk 0:26:52]} 31. gxf4 {[%clk 0:40:30]} 31... Rc1 {[%clk
0:20:38]} 32. Rd1 {[%clk 0:36:57]} 32... Rc8 {[%clk 0:13:32]} 33. Rd2 {[%clk
0:36:58]} 33... Rc5 {[%clk 0:11:18]} 34. Rd4 {[%clk 0:36:13]} 34... Nd5 {[%clk
0:05:48]} 35. Kf3 {[%clk 0:31:58]} 35... Nb6 {[%clk 0:02:43]} 1/2-1/2

[Variant "Standard"]
[Site "Europe Echecs"]

[Event "Championnat du monde jeunes U10"]
[Date "2024.11.24"]
[White "Mutyalapati, Modith Aaroh"]
[Black "Aguike, Toshiya"]
[WhiteElo "1893"]
[BlackElo "1716"]
[Round "9.29"]
[Result "1-0"]
[TimeControl "5400+30"]

1. e4 {[%clk 1:30:46]} 1... e5 {[%clk 1:30:43]} 2. Nf3 {[%clk 1:31:12]} 2... Nc6
{[%clk 1:30:55]} 3. Bb5 {[%clk 1:31:16]} 3... Nf6 {[%clk 1:30:45]} 4. O-O {[%clk
1:31:32]} 4... d6 {[%clk 1:30:00]} 5. d4 exd4 {[%clk 1:29:19]} 6. Nxd4 {[%clk
1:30:54]} 6... Bd7 {[%clk 1:28:35]} 7. Nc3 {[%clk 1:31:11]} 7... Be7 {[%clk
1:27:19]} 8. Be3 {[%clk 1:24:56]} 8... O-O {[%clk 1:26:18]} 9. h3 {[%clk
1:08:58]} 9... a6 {[%clk 1:21:57]} 10. Bxc6 {[%clk 1:04:07]} 10... bxc6 {[%clk
1:21:52]} 11. Qf3 {[%clk 1:03:48]} 11... c5 {[%clk 1:14:38]} 12. Nde2 {[%clk
1:03:35]} 12... Re8 {[%clk 1:13:18]} 13. Nf4 {[%clk 0:56:38]} 13... Rb8 {[%clk
1:07:34]} 14. b3 {[%clk 0:55:01]} 14... Bf8 {[%clk 1:05:36]} 15. Nfd5 {[%clk
0:49:29]} 15... Nxd5 {[%clk 1:04:08]} 16. Nxd5 {[%clk 0:49:36]} 16... c6 {[%clk
1:04:18]} 17. Nc3 {[%clk 0:49:46]} 17... g6 {[%clk 1:04:25]} 18. Rad1 {[%clk
0:49:49]} 18... Bg7 {[%clk 1:02:40]} 19. Bf4 {[%clk 0:47:41]} 19... Bxc3 {[%clk
0:58:02]} 20. Qxc3 {[%clk 0:47:54]} 20... Rxe4 {[%clk 0:57:13]} 21. Bxd6 {[%clk
0:47:12]} 21... Rb7 {[%clk 0:57:34]} 22. Bxc5 {[%clk 0:46:46]} 22... Qg5 {[%clk
0:56:59]} 23. Rfe1 {[%clk 0:39:36]} 23... Rxe1+ {[%clk 0:54:35]} 24. Rxe1 {[%clk
0:40:01]} 24... Rb5 {[%clk 0:53:01]} 25. b4 {[%clk 0:40:10]} 25... a5 {[%clk
0:52:04]} 26. Bf8 {[%clk 0:39:52]} 26... f6 {[%clk 0:48:55]} 27. Bc5 {[%clk
0:36:24]} 27... axb4 {[%clk 0:45:27]} 28. Bxb4 {[%clk 0:36:43]} 28... c5 {[%clk
0:41:39]} 29. Qc4+ {[%clk 0:33:33]} 29... Kf8 {[%clk 0:41:59]} 30. h4 {[%clk
0:32:53]} 30... Qf5 {[%clk 0:41:10]} 31. Bd2 {[%clk 0:33:16]} 31... g5 {[%clk
0:39:01]} 32. hxg5 {[%clk 0:33:36]} 32... fxg5 {[%clk 0:39:11]} 33. a4 {[%clk
0:32:53]} 33... Rb2 {[%clk 0:37:47]} 34. Be3 {[%clk 0:33:02]} 34... Rxc2 {[%clk
0:34:16]} 35. Qa6 {[%clk 0:32:53]} 35... Qg6 {[%clk 0:26:10]} 36. Qa8+ {[%clk
0:31:51]} 36... Kf7 {[%clk 0:24:00]} 37. Qd8 {[%clk 0:31:41]} 37... Qe6 {[%clk
0:24:13]} 38. Qxg5 {[%clk 0:31:44]} 38... Rc4 {[%clk 0:24:03]} 39. Bd2 {[%clk
0:29:00]} 39... Qf6 {[%clk 0:16:44]} 40. Qh5+ {[%clk 0:28:58]} 40... Qg6 {[%clk
0:15:49]} 41. Qd5+ {[%clk 0:29:19]} 41... Be6 {[%clk 0:16:11]} 42. Qb7+ {[%clk
0:29:21]} 42... Kf6 {[%clk 0:14:54]} 43. Bc1 {[%clk 0:28:33]} 43... Qf5 {[%clk
0:14:08]} 44. Bb2+ {[%clk 0:28:53]} 44... Kg5 {[%clk 0:13:19]} 45. Re5 {[%clk
0:29:12]} 45... Rc1+ {[%clk 0:13:36]} 46. Bxc1+ {[%clk 0:29:39]} 46... Kg6
{[%clk 0:13:38]} 47. Rxf5 {[%clk 0:30:05]} 47... Bd7 {[%clk 0:14:02]} 48. Qxd7
{[%clk 0:30:31]} 48... c4 {[%clk 0:14:27]} 49. a5 {[%clk 0:30:55]} 49... c3
{[%clk 0:14:53]} 50. a6 {[%clk 0:31:23]} 50... c2 {[%clk 0:15:19]} 51. a7 {[%clk
0:31:50]} 51... h5 {[%clk 0:15:44]} 52. a8=Q {[%clk 0:32:16]} 52... h4 {[%clk
0:16:03]} 53. Rf6+ {[%clk 0:32:41]} 53... Kh5 {[%clk 0:16:28]} 54. Qg4+ {[%clk
0:33:06]} 54... Kxg4 {[%clk 0:16:49]} 55. Qf3# 1-0

[Variant "Standard"]
[Site "Europe Echecs"]

[Event "Championnat du monde jeunes U10"]
[Date "2024.11.24"]
[White "Meitzner, Jonathan Franz"]
[Black "Gomez Silva, Maximiliano"]
[WhiteElo "1876"]
[BlackElo "1643"]
[Round "9.30"]
[Result "1/2-1/2"]
[TimeControl "5400+30"]

1. e4 {[%clk 1:30:57]} 1... c6 {[%clk 1:30:21]} 2. d4 {[%clk 1:31:20]} 2... d5
3. exd5 {[%clk 1:31:43]} 3... cxd5 {[%clk 1:30:22]} 4. Bd3 {[%clk 1:31:56]} 4...
Nc6 {[%clk 1:30:00]} 5. c3 {[%clk 1:32:21]} 5... Qc7 {[%clk 1:29:43]} 6. Ne2
{[%clk 1:32:27]} 6... e6 {[%clk 1:27:12]} 7. Bf4 {[%clk 1:29:29]} 7... Bd6
{[%clk 1:26:10]} 8. Bxd6 {[%clk 1:28:54]} 8... Qxd6 {[%clk 1:26:39]} 9. O-O
{[%clk 1:28:49]} 9... Nf6 {[%clk 1:25:25]} 10. Nd2 {[%clk 1:26:02]} 10... O-O
{[%clk 1:24:12]} 11. Ng3 {[%clk 1:22:00]} 11... Bd7 {[%clk 1:18:11]} 12. Re1
{[%clk 1:11:37]} 12... Rab8 {[%clk 1:12:31]} 13. a4 {[%clk 1:10:53]} 13... a5
{[%clk 1:08:13]} 14. Nf3 {[%clk 1:10:03]} 14... Rfe8 {[%clk 1:02:27]} 15. Ne5
{[%clk 1:09:39]} 15... Ne7 {[%clk 0:59:48]} 16. Qf3 {[%clk 1:04:18]} 16... Ng6
{[%clk 0:55:24]} 17. Nh5 {[%clk 1:01:02]} 17... Qe7 {[%clk 0:49:38]} 18. Nxf6+
{[%clk 1:00:45]} 18... gxf6 {[%clk 0:48:59]} 19. Nxd7 {[%clk 1:00:25]} 19...
Qxd7 {[%clk 0:49:03]} 20. Bb5 {[%clk 1:00:47]} 20... Qe7 {[%clk 0:48:43]} 21.
Bxe8 {[%clk 1:01:09]} 21... Rxe8 {[%clk 0:47:50]} 22. Qg3 {[%clk 1:00:39]} 22...
Kh8 {[%clk 0:45:30]} 23. f4 {[%clk 0:54:43]} 23... Rg8 {[%clk 0:40:18]} 24. f5
{[%clk 0:49:45]} 24... Ne5 {[%clk 0:39:25]} 25. Qh3 {[%clk 0:47:25]} 25... Ng4
{[%clk 0:38:44]} 26. Qf3 {[%clk 0:45:20]} 26... Qd6 {[%clk 0:35:54]} 27. g3
{[%clk 0:36:56]} 27... e5 {[%clk 0:29:22]} 28. dxe5 {[%clk 0:25:49]} 28... fxe5
{[%clk 0:28:05]} 29. Kh1 {[%clk 0:21:24]} 29... e4 {[%clk 0:21:28]} 30. Qe2
{[%clk 0:17:05]} 30... Ne5 {[%clk 0:14:53]} 31. Rad1 {[%clk 0:12:22]} 31... Nf3
{[%clk 0:13:58]} 32. Rf1 {[%clk 0:11:21]} 32... Rxg3 {[%clk 0:12:10]} 33. Rxf3
{[%clk 0:05:12]} 33... Rxf3 {[%clk 0:12:33]} 34. Qg2 {[%clk 0:04:38]} 34... Rxf5
{[%clk 0:09:44]} 35. Rg1 {[%clk 0:05:02]} 35... Qg6 {[%clk 0:08:55]} 36. Qd2
{[%clk 0:05:19]} 36... Qh5 {[%clk 0:05:35]} 37. Qd4+ {[%clk 0:04:42]} 37... f6
{[%clk 0:05:49]} 38. Qc5 {[%clk 0:04:44]} 38... Qf3+ {[%clk 0:01:22]} 39. Rg2
{[%clk 0:05:09]} 39... Qf1+ {[%clk 0:01:24]} 40. Rg1 {[%clk 0:05:34]} 40... Qf3+
{[%clk 0:01:48]} 41. Rg2 {[%clk 0:05:58]} 1/2-1/2

[Variant "Standard"]
[Site "Europe Echecs"]

[Event "Championnat du monde jeunes U10"]
[Date "2024.11.24"]
[White "Katta, Sriansh"]
[Black "Mrozowski, Nikodem"]
[WhiteElo "1766"]
[BlackElo "1874"]
[Round "9.31"]
[Result "0-1"]
[TimeControl "5400+30"]

1. e4 {[%clk 1:30:55]} 1... c5 {[%clk 1:30:51]} 2. Nc3 {[%clk 1:31:20]} 2... Nc6
{[%clk 1:31:16]} 3. f4 {[%clk 1:31:45]} 3... g6 {[%clk 1:31:38]} 4. Nf3 {[%clk
1:32:11]} 4... Bg7 {[%clk 1:31:52]} 5. Bc4 {[%clk 1:32:36]} 5... e6 {[%clk
1:32:17]} 6. O-O {[%clk 1:33:02]} 6... Nge7 {[%clk 1:32:39]} 7. d3 {[%clk
1:33:25]} 7... O-O {[%clk 1:32:50]} 8. Qe1 {[%clk 1:33:54]} 8... d5 {[%clk
1:33:12]} 9. Bb3 {[%clk 1:34:19]} 9... Nd4 {[%clk 1:33:18]} 10. Nxd4 {[%clk
1:34:45]} 10... cxd4 {[%clk 1:33:42]} 11. Nd1 {[%clk 1:35:13]} 11... a5 {[%clk
1:33:58]} 12. a4 {[%clk 1:35:38]} 12... dxe4 {[%clk 1:34:22]} 13. dxe4 {[%clk
1:36:06]} 13... b6 {[%clk 1:34:39]} 14. Nf2 {[%clk 1:36:29]} 14... Ba6 {[%clk
1:33:31]} 15. Nd3 {[%clk 1:36:51]} 15... Qd7 {[%clk 1:29:43]} 16. Rf2 {[%clk
1:32:34]} 16... Rac8 {[%clk 1:26:17]} 17. Qd1 {[%clk 1:31:02]} 17... Bb7 {[%clk
1:20:42]} 18. Qe2 {[%clk 1:29:32]} 18... Qc6 {[%clk 1:19:27]} 19. e5 {[%clk
1:27:22]} 19... Nf5 {[%clk 1:17:19]} 20. Bd2 {[%clk 1:25:18]} 20... h5 {[%clk
1:16:30]} 21. Raf1 {[%clk 1:19:02]} 21... Rfd8 {[%clk 1:11:00]} 22. Rf3 {[%clk
1:12:51]} 22... Bf8 {[%clk 1:07:33]} 23. Rh3 {[%clk 1:07:03]} 23... Be7 {[%clk
1:06:29]} 24. Ne1 {[%clk 1:04:28]} 24... Bb4 {[%clk 1:00:57]} 25. Bxb4 {[%clk
1:01:27]} 25... axb4 {[%clk 1:01:25]} 26. Nf3 {[%clk 1:01:01]} 26... Qc5 {[%clk
1:00:30]} 27. Qd3 {[%clk 0:59:50]} 27... Ra8 {[%clk 0:59:16]} 28. Rf2 {[%clk
0:52:43]} 28... Ba6 {[%clk 0:59:08]} 29. Qd2 {[%clk 0:51:28]} 29... d3 {[%clk
0:58:19]} 30. Ng5 {[%clk 0:46:29]} 30... dxc2 {[%clk 0:57:05]} 31. Qxc2 {[%clk
0:46:50]} 31... Qd4 {[%clk 0:56:57]} 32. g4 {[%clk 0:35:35]} 32... Ne3 {[%clk
0:55:01]} 33. Rxe3 {[%clk 0:34:00]} 33... Qxe3 {[%clk 0:55:21]} 34. Qc7 {[%clk
0:34:02]} 34... Qe1+ {[%clk 0:53:30]} 35. Kg2 {[%clk 0:34:26]} 35... Bf1+ {[%clk
0:53:38]} 36. Kg3 {[%clk 0:33:57]} 36... Rd3+ {[%clk 0:54:04]} 37. Nf3 {[%clk
0:33:55]} 37... h4+ {[%clk 0:54:21]} 38. Kxh4 {[%clk 0:33:34]} 38... Qxf2+
{[%clk 0:54:47]} 39. Kg5 {[%clk 0:33:49]} 39... Rxb3 {[%clk 0:54:32]} 40. Kf6
{[%clk 0:33:29]} 40... Rf8 {[%clk 0:54:56]} 0-1

[Variant "Standard"]
[Site "Europe Echecs"]

[Event "Championnat du monde jeunes U10"]
[Date "2024.11.24"]
[White "Gusev, Daniil Den"]
[Black "Bulat, Mansur"]
[WhiteElo "1863"]
[BlackElo "1610"]
[Round "9.32"]
[Result "1-0"]
[TimeControl "5400+30"]

1. e4 {[%clk 1:30:58]} 1... c5 {[%clk 1:30:40]} 2. Nc3 {[%clk 1:30:43]} 2... Nc6
{[%clk 1:29:52]} 3. Nge2 {[%clk 1:30:30]} 3... g6 {[%clk 1:28:16]} 4. d4 {[%clk
1:30:25]} 4... cxd4 {[%clk 1:27:41]} 5. Nxd4 {[%clk 1:30:30]} 5... Bg7 {[%clk
1:24:40]} 6. Be3 {[%clk 1:28:53]} 6... d6 {[%clk 1:08:41]} 7. Qd2 {[%clk
1:26:54]} 7... Nf6 {[%clk 1:04:47]} 8. f3 {[%clk 1:25:43]} 8... O-O {[%clk
0:58:46]} 9. O-O-O {[%clk 1:23:59]} 9... a6 {[%clk 0:49:47]} 10. g4 {[%clk
1:16:57]} 10... Bd7 {[%clk 0:42:14]} 11. h4 {[%clk 1:11:39]} 11... h5 {[%clk
0:36:36]} 12. g5 {[%clk 1:04:47]} 12... Ne8 {[%clk 0:30:22]} 13. f4 {[%clk
1:01:05]} 13... b5 {[%clk 0:23:23]} 14. Kb1 {[%clk 0:57:48]} 14... Nc7 {[%clk
0:21:31]} 15. Be2 {[%clk 0:46:31]} 15... b4 {[%clk 0:19:02]} 16. Nd5 {[%clk
0:45:38]} 16... Nxd4 {[%clk 0:18:11]} 17. Bxd4 {[%clk 0:45:51]} 17... Nxd5
{[%clk 0:17:49]} 18. Bxg7 {[%clk 0:42:58]} 18... Kxg7 {[%clk 0:16:35]} 19. Qxd5
{[%clk 0:42:58]} 19... a5 {[%clk 0:15:46]} 20. Rhf1 {[%clk 0:40:28]} 20... Rc8
{[%clk 0:12:44]} 21. f5 {[%clk 0:38:31]} 21... Qc7 {[%clk 0:11:43]} 22. f6+
{[%clk 0:38:19]} 22... exf6 {[%clk 0:12:01]} 23. gxf6+ {[%clk 0:38:40]} 23...
Kh7 {[%clk 0:11:09]} 24. Bxh5 {[%clk 0:24:38]} 24... Qxc2+ {[%clk 0:11:11]} 25.
Ka1 {[%clk 0:25:05]} 25... Rc5 {[%clk 0:08:40]} 26. Qxd6 {[%clk 0:21:13]} 26...
Rfc8 {[%clk 0:08:20]} 27. Bxg6+ {[%clk 0:19:35]} 27... Kh8 {[%clk 0:08:29]} 28.
Qf4 {[%clk 0:19:39]} 28... Kg8 {[%clk 0:06:51]} 29. Qh6 {[%clk 0:20:00]} 29...
Qxb2+ {[%clk 0:04:20]} 30. Kxb2 {[%clk 0:20:22]} 30... Rc2+ {[%clk 0:04:46]} 31.
Kb1 {[%clk 0:20:42]} 31... Rb2+ {[%clk 0:04:11]} 32. Kxb2 {[%clk 0:21:06]} 32...
Rc2+ {[%clk 0:04:37]} 33. Kxc2 {[%clk 0:21:26]} 33... Ba4+ {[%clk 0:05:02]} 34.
Kb2 {[%clk 0:21:47]} 34... Bxd1 {[%clk 0:05:20]} 35. Qg7# {[%clk 0:22:10]} 1-0

[Variant "Standard"]
[Site "Europe Echecs"]

[Event "Championnat du monde jeunes U10"]
[Date "2024.11.24"]
[White "Vardanyan, Armen Art."]
[Black "Garcia Tanjala, Marko"]
[WhiteElo "1735"]
[BlackElo "1833"]
[Round "9.33"]
[Result "1-0"]
[TimeControl "5400+30"]

1. d4 {[%clk 1:30:58]} 1... Nf6 {[%clk 1:30:52]} 2. c4 {[%clk 1:31:18]} 2... e6
{[%clk 1:31:07]} 3. Nc3 {[%clk 1:31:36]} 3... Bb4 {[%clk 1:31:26]} 4. Qc2 {[%clk
1:31:58]} 4... O-O {[%clk 1:31:49]} 5. e4 {[%clk 1:32:27]} 5... d6 {[%clk
1:32:10]} 6. Bg5 {[%clk 1:31:06]} 6... e5 {[%clk 1:29:20]} 7. d5 {[%clk
1:25:13]} 7... h6 {[%clk 1:20:09]} 8. Bh4 {[%clk 1:25:01]} 8... Nbd7 {[%clk
1:19:26]} 9. f3 {[%clk 1:17:00]} 9... Nb6 {[%clk 1:10:12]} 10. a3 {[%clk
1:16:20]} 10... Bc5 {[%clk 1:09:47]} 11. Bd3 {[%clk 1:09:12]} 11... c6 {[%clk
1:06:13]} 12. Nge2 {[%clk 1:06:01]} 12... cxd5 {[%clk 1:06:01]} 13. exd5 {[%clk
1:05:45]} 13... Be3 {[%clk 1:06:07]} 14. Ne4 {[%clk 1:04:55]} 14... g5 {[%clk
1:06:13]} 15. Bf2 {[%clk 1:03:48]} 15... Bxf2+ {[%clk 1:01:20]} 16. Nxf2 {[%clk
1:03:34]} 16... Kg7 {[%clk 0:58:01]} 17. Ng3 {[%clk 1:01:20]} 17... Bd7 {[%clk
0:54:07]} 18. Nf5+ {[%clk 1:00:38]} 18... Bxf5 {[%clk 0:54:27]} 19. Bxf5 {[%clk
1:01:07]} 19... Qc7 {[%clk 0:54:41]} 20. b3 {[%clk 0:58:04]} 20... Qc5 {[%clk
0:54:56]} 21. Ke2 {[%clk 0:56:36]} 21... a5 {[%clk 0:51:27]} 22. h4 {[%clk
0:55:09]} 22... a4 {[%clk 0:51:10]} 23. hxg5 {[%clk 0:55:06]} 23... hxg5 {[%clk
0:51:25]} 24. Qd2 {[%clk 0:55:23]} 24... Rg8 {[%clk 0:41:03]} 25. Qxg5+ {[%clk
0:54:43]} 25... Kf8 {[%clk 0:41:25]} 26. Qxf6 {[%clk 0:54:22]} 26... axb3 {[%clk
0:41:38]} 27. Nd3 {[%clk 0:41:20]} 27... Qc7 {[%clk 0:38:18]} 28. Rh8 {[%clk
0:39:07]} 28... Rxh8 {[%clk 0:34:44]} 29. Qxh8+ {[%clk 0:39:36]} 29... Ke7
{[%clk 0:35:04]} 30. Qh4+ {[%clk 0:39:55]} 30... Ke8 {[%clk 0:34:38]} 31. Qf6
{[%clk 0:32:54]} 31... Qe7 {[%clk 0:32:42]} 32. Qh8+ {[%clk 0:32:35]} 32... Qf8
{[%clk 0:32:58]} 33. Qxf8+ {[%clk 0:32:57]} 33... Kxf8 {[%clk 0:33:14]} 34. Nb2
{[%clk 0:33:19]} 34... Ke7 {[%clk 0:32:15]} 35. Kd2 {[%clk 0:33:01]} 35... Kf6
{[%clk 0:32:05]} 36. Bh3 {[%clk 0:33:18]} 36... Kg5 {[%clk 0:31:50]} 37. Kc3
{[%clk 0:33:19]} 37... Ra5 {[%clk 0:31:46]} 38. Kxb3 {[%clk 0:33:31]} 38... Nxd5
{[%clk 0:32:10]} 39. cxd5 {[%clk 0:33:34]} 39... Rxd5 {[%clk 0:32:34]} 40. Rd1
{[%clk 0:32:43]} 40... Rb5+ {[%clk 0:32:56]} 41. Kc2 {[%clk 0:32:40]} 41... d5
{[%clk 0:33:12]} 42. a4 {[%clk 0:32:40]} 42... Rc5+ {[%clk 0:33:37]} 43. Kb3
{[%clk 0:32:53]} 43... d4 {[%clk 0:32:03]} 44. Kb4 {[%clk 0:31:52]} 44... Rc7
{[%clk 0:31:16]} 45. Nd3 {[%clk 0:32:02]} 45... f6 {[%clk 0:30:48]} 46. Rc1
{[%clk 0:31:54]} 46... Re7 {[%clk 0:30:17]} 47. Rc5 {[%clk 0:30:43]} 47... b6
{[%clk 0:29:45]} 48. Rb5 {[%clk 0:30:48]} 48... Rc7 {[%clk 0:29:33]} 49. Rxb6
{[%clk 0:30:36]} 49... Rc3 {[%clk 0:29:26]} 50. Nc5 {[%clk 0:30:51]} 50... f5
{[%clk 0:27:15]} 51. a5 {[%clk 0:30:23]} 51... Rc1 {[%clk 0:26:44]} 52. Ne6+
{[%clk 0:30:01]} 52... Kh4 {[%clk 0:26:50]} 53. Bxf5 {[%clk 0:30:23]} 53... Kg3
{[%clk 0:27:00]} 54. Be4 {[%clk 0:30:02]} 54... Kxg2 {[%clk 0:26:16]} 55. f4+
{[%clk 0:30:26]} 55... Kf2 {[%clk 0:26:38]} 56. fxe5 {[%clk 0:30:21]} 56... Ke3
{[%clk 0:27:01]} 57. Nc5 {[%clk 0:30:35]} 1-0

[Variant "Standard"]
[Site "Europe Echecs"]

[Event "Championnat du monde jeunes U10"]
[Date "2024.11.24"]
[White "Guirado Lara, Pablo"]
[Black "Otetileu, Amanbek"]
[WhiteElo "1832"]
[BlackElo "1632"]
[Round "9.34"]
[Result "1-0"]
[TimeControl "5400+30"]

1. e4 c5 {[%clk 1:30:46]} 2. Nf3 {[%clk 1:31:25]} 2... d6 {[%clk 1:31:10]} 3. c3
{[%clk 1:31:48]} 3... Nf6 {[%clk 1:31:10]} 4. h3 {[%clk 1:32:01]} 4... Bd7
{[%clk 1:30:55]} 5. Bd3 {[%clk 1:32:22]} 5... Nc6 {[%clk 1:30:46]} 6. Bc2 {[%clk
1:31:52]} 6... e5 {[%clk 1:26:58]} 7. O-O {[%clk 1:28:25]} 7... Be7 {[%clk
1:27:14]} 8. d4 {[%clk 1:19:08]} 8... cxd4 {[%clk 1:26:01]} 9. cxd4 {[%clk
1:19:07]} 9... Rc8 {[%clk 1:25:55]} 10. Nc3 {[%clk 1:12:24]} 10... h6 {[%clk
1:21:30]} 11. Be3 {[%clk 0:53:09]} 11... a5 {[%clk 1:18:42]} 12. a3 {[%clk
0:46:34]} 12... O-O {[%clk 1:16:51]} 13. Qd3 {[%clk 0:28:07]} 13... exd4 {[%clk
1:14:48]} 14. Bxd4 {[%clk 0:25:37]} 14... g6 {[%clk 1:12:44]} 15. Bb3 {[%clk
0:19:55]} 15... Be6 {[%clk 1:11:18]} 16. Bxe6 {[%clk 0:19:57]} 16... fxe6 {[%clk
1:11:28]} 17. e5 {[%clk 0:19:25]} 17... dxe5 {[%clk 1:10:57]} 18. Qxg6+ {[%clk
0:19:43]} 18... Kh8 {[%clk 1:11:21]} 19. Qxh6+ {[%clk 0:18:25]} 19... Nh7 {[%clk
1:10:49]} 20. Bxe5+ {[%clk 0:15:50]} 20... Nxe5 {[%clk 1:08:07]} 21. Nxe5 {[%clk
0:16:10]} 21... Rf6 {[%clk 1:07:55]} 22. Qxf6+ {[%clk 0:15:51]} 22... Nxf6
{[%clk 1:07:58]} 23. Nf7+ {[%clk 0:16:17]} 23... Kg7 {[%clk 1:08:22]} 24. Nxd8
{[%clk 0:16:40]} 24... Bxd8 {[%clk 1:08:36]} 25. Rad1 {[%clk 0:16:28]} 25... Be7
{[%clk 1:08:58]} 26. Rfe1 {[%clk 0:16:30]} 26... Bxa3 {[%clk 1:09:17]} 27. bxa3
{[%clk 0:16:32]} 27... Rxc3 {[%clk 1:09:41]} 28. Rxe6 {[%clk 0:16:47]} 28...
Rxa3 {[%clk 1:09:51]} 29. Re7+ {[%clk 0:17:12]} 29... Kg6 {[%clk 1:10:16]} 30.
Rxb7 {[%clk 0:17:35]} 30... a4 {[%clk 1:10:16]} 31. Ra7 {[%clk 0:17:50]} 31...
Ra2 {[%clk 1:10:39]} 32. Rd4 {[%clk 0:17:40]} 32... Ra1+ {[%clk 1:10:17]} 33.
Kh2 {[%clk 0:18:03]} 33... a3 {[%clk 1:10:43]} 34. Rda4 {[%clk 0:18:27]} 34...
Ra2 {[%clk 1:10:47]} 35. Rxa3 {[%clk 0:18:48]} 35... Rxf2 {[%clk 1:11:11]} 36.
Rf3 {[%clk 0:18:58]} 36... Rxf3 {[%clk 1:11:29]} 37. gxf3 {[%clk 0:19:27]} 37...
Kf5 {[%clk 1:11:44]} 38. Rf7 {[%clk 0:19:46]} 38... Kg6 {[%clk 1:12:10]} 39.
Rxf6+ {[%clk 0:19:52]} 39... Kxf6 {[%clk 1:12:39]} 40. Kg3 {[%clk 0:20:13]}
40... Kg5 {[%clk 1:12:58]} 41. h4+ {[%clk 0:20:34]} 41... Kh5 {[%clk 1:13:14]}
42. Kf4 {[%clk 0:20:43]} 42... Kg6 {[%clk 1:13:19]} 43. Kg4 {[%clk 0:20:59]}
43... Kh6 {[%clk 1:13:43]} 44. Kf5 {[%clk 0:21:23]} 44... Kg7 {[%clk 1:14:08]}
45. f4 {[%clk 0:21:48]} 45... Kf7 {[%clk 1:14:35]} 46. h5 {[%clk 0:22:10]} 46...
Kg7 {[%clk 1:14:59]} 47. Ke6 {[%clk 0:22:35]} 47... Kg8 {[%clk 1:15:16]} 48. f5
{[%clk 0:22:53]} 48... Kg7 {[%clk 1:15:31]} 49. Ke7 {[%clk 0:23:18]} 49... Kg8
{[%clk 1:15:56]} 50. f6 {[%clk 0:23:30]} 50... Kh8 {[%clk 1:16:15]} 51. f7
{[%clk 0:23:51]} 51... Kh7 {[%clk 1:16:41]} 52. h6 {[%clk 0:24:14]} 52... Kxh6
{[%clk 1:17:04]} 53. f8=Q+ {[%clk 0:24:37]} 53... Kg5 {[%clk 1:17:23]} 54. Qf3
{[%clk 0:24:56]} 54... Kg6 {[%clk 1:17:49]} 55. Qg4+ {[%clk 0:25:20]} 55... Kh7
{[%clk 1:18:14]} 56. Kf6 {[%clk 0:25:43]} 56... Kh8 {[%clk 1:18:37]} 57. Qg7#
{[%clk 0:26:07]} 1-0

[Variant "Standard"]
[Site "Europe Echecs"]